[Event "RUS-chTW Premier 2019"]
[Site "Sochi"]
[Date "2019.05.05"]
[Round "5.11"]
[White "Chan, Naruna"]
[Black "Mironenko, Galina"]
[Result "1/2-1/2"]
[ECO "C18"]
[WhiteElo "1985"]
[BlackElo "1901"]
[Annotator "NA"]
[PlyCount "123"]
[EventDate "2019.05.01"]
[EventType "team-tourn"]
[EventCountry "RUS"]
[SourceTitle "playchess.com"]
[Source "ChessBase"]
[SourceQuality "1"]
[TimeControl "40/5400+30:1800+30"]

1. e4 {[%emt 0:00:00]} e6 {[%emt 0:00:00]} 2. d4 {[%emt 0:00:00]} d5 {[%emt 0:00:00]} 3. Nc3 {[%emt 0:01:58]} Bb4 {[%emt 0:00:00]} 4. e5 {[%emt 0:05:14]} Ne7 {[%emt 0:00:00]} 5. a3 {[%emt 0:00:40]} Bxc3+ {[%emt 0:00:00]} 6. bxc3 {[%emt 0:00:04]} c5 {[%emt 0:00:04]} 7. Qg4 {[%emt 0:03:57]} Qc7 {[%emt 0:18:41]} 8. Qxg7 {[%emt 0:08:24]} Rg8 {[%emt 0:00:08]} 9. Qxh7 {[%emt 0:01:15]} cxd4 {[%emt 0:00:09]} 10. Ne2 {[%emt 0:00:32]} dxc3 {[%emt 0:14:10]} 11. f4 {[%emt 0:01:45]} Na6 {[%emt 0:13:03]} 12. Qd3 {[%emt 0:04:32]} Bd7 {[%emt 0:03:16]} 13. Qxc3 {[%emt 0:04:19]} Rc8 {[%emt 0:03:54]} 14. Qxc7 {[%emt 0:04:57]} Rxc7 {[%emt 0:00:06]} 15. Nd4 {[%emt 0:00:09]} Nf5 {[%emt 0:04:49]} 16. Nxf5 {[%emt 0:16:47]} exf5 {[%emt 0:00:08]} 17. Bd3 {[%emt 0:12:01]} Rxg2 {[%emt 0:01:25]} 18. Be3 {[%emt 0:00:32]} Nc5 {[%emt 0:01:54]} 19. Bxc5 {[%emt 0:00:30]} Rxc5 {[%emt 0:00:06]} 20. O-O-O {[%emt 0:01:09]} Rc6 {[%emt 0:04:23]} 21. Rd2 {[%emt 0:09:10]} Rg4 {[%emt 0:04:45]} 22. Rf1 {[%emt 0:02:48]} Rh4 {[%emt 0:03:42]} 23. Rff2 {[%emt 0:06:09]} Ke7 {[%emt 0:04:13]} 24. Rd1 {[%emt 0:03:24]} Rch6 {[%emt 0:03:15]} 25. Rdd2 {[%emt 0:03:04]} Rc6 {[%emt 0:04:34]} 26. Bf1 {[%emt 0:01:38]} Rc5 {[%emt 0:01:25]} 27. Rd3 {[%emt 0:01:23]} Bc6 {[%emt 0:01:57]} 28. Rh3 {[%emt 0:00:27]} Rxh3 {[%emt 0:01:34]} 29. Bxh3 {[%emt 0:00:03]} Rc3 {[%emt 0:01:01]} 30. Bxf5 {[%emt 0:00:10]} Rxa3 {[%emt 0:00:06]} 31. h4 {[%emt 0:00:17]} Ra1+ {[%emt 0:00:08]} 32. Kb2 {[%emt 0:03:28]} Rh1 {[%emt 0:00:07]} 33. c3 {[%emt 0:04:19]} Rxh4 {[%emt 0:00:37]} 34. Bc2 {[%emt 0:00:59]} Ke6 {[%emt 0:00:51]} 35. Bb3 {[%emt 0:00:39]} f6 {[%emt 0:03:33]} 36. exf6 {[%emt 0:00:34]} Kxf6 {[%emt 0:00:08]} 37. Bc2 {[%emt 0:00:20]} Bd7 {[%emt 0:01:00]} 38. Bb3 {[%emt 0:00:49]} Be6 {[%emt 0:00:37]} 39. Rd2 {[%emt 0:00:18]} Rh5 {[%emt 0:03:42]} 40. Rd4 {[%emt 0:00:00]} Ke7 {[%emt 0:00:00]} 41. Ka3 {[%emt 0:12:11]} Kd6 {[%emt 0:04:58]} 42. Kb4 {[%emt 0:00:27]} Kc6 {[%emt 0:00:46]} 43. Ba4+ {[%emt 0:01:22]} Kb6 {[%emt 0:01:25]} 44. Bd1 {[%emt 0:01:40]} a5+ {[%emt 0:01:44]} 45. Kb3 {[%emt 0:00:44]} Rh3 {[%emt 0:00:57]} 46. Kb2 {[%emt 0:02:12]} Kc5 {[%emt 0:01:13]} 47. Rd2 {[%emt 0:02:58]} Rh6 {[%emt 0:05:16]} 48. Bc2 {[%emt 0:02:14]} Rf6 {[%emt 0:01:22]} 49. f5 {[%emt 0:03:41]} Bd7 {[%emt 0:02:05]} 50. Rg2 {[%emt 0:02:04]} b5 {[%emt 0:02:51]} 51. Rg6 {[%emt 0:01:06]} Rxg6 {[%emt 0:04:21]} 52. fxg6 {[%emt 0:00:13]} Be6 {[%emt 0:00:04]} 53. Bd3 {[%emt 0:00:59]} Bg8 {[%emt 0:00:36]} 54. Bf5 {[%emt 0:01:36]} Kd6 {[%emt 0:00:34]} 55. Ka3 {[%emt 0:00:33]} Kc5 {[%emt 0:01:40]} 56. Bd7 {[%emt 0:00:42]} b4+ {[%emt 0:00:15]} 57. Kb2 {[%emt 0:00:09]} Kd6 {[%emt 0:00:55]} 58. Ba4 {[%emt 0:00:45]} Ke5 {[%emt 0:00:56]} 59. cxb4 {[%emt 0:00:12]} axb4 {[%emt 0:00:05]} 60. Kb3 {[%emt 0:00:03]} Kf6 {[%emt 0:00:13]} 61. Kxb4 {[%emt 0:00:11]} Kxg6 {[%emt 0:00:11]} 62. Kc5 {[%emt 0:00:10]} 1/2-1/2

[Event "RUS-chTW Premier 2019"]
[Site "Sochi"]
[Date "2019.05.05"]
[Round "5.12"]
[White "Filippova, Darya"]
[Black "Azimova, Karina"]
[Result "1-0"]
[ECO "A21"]
[WhiteElo "2070"]
[BlackElo "2072"]
[Annotator "NA"]
[PlyCount "47"]
[EventDate "2019.05.01"]
[EventType "team-tourn"]
[EventCountry "RUS"]
[SourceTitle "playchess.com"]
[Source "ChessBase"]
[SourceQuality "1"]
[TimeControl "40/5400+30:1800+30"]

1. c4 {[%emt 0:00:00]} e5 {[%emt 0:00:00]} 2. Nc3 {[%emt 0:00:00]} d6 {[%emt 0:00:06]} 3. g3 {[%emt 0:00:15]} f5 {[%emt 0:00:06]} 4. d4 {[%emt 0:00:23]} Be7 {[%emt 0:00:06]} 5. Nd5 {[%emt 0:05:50]} Nf6 {[%emt 0:02:55]} 6. Nxe7 {[%emt 0:01:41]} Qxe7 {[%emt 0:00:05]} 7. Bg2 {[%emt 0:01:01]} O-O {[%emt 0:03:05]} 8. e3 {[%emt 0:05:41]} f4 {[%emt 0:19:00]} 9. gxf4 {[%emt 0:21:20]} exf4 {[%emt 0:01:11]} 10. h3 {[%emt 0:00:21]} Nc6 {[%emt 0:11:15]} 11. Ne2 {[%emt 0:04:19]} Nh5 {[%emt 0:17:15]} 12. Bf3 {[%emt 0:07:53]} fxe3 {[%emt 0:01:37]} 13. Bd5+ {[%emt 0:00:12]} Kh8 {[%emt 0:03:39]} 14. Bxe3 {[%emt 0:00:08]} Bf5 {[%emt 0:02:19]} 15. Qd2 {[%emt 0:02:53]} Be4 {[%emt 0:01:46]} 16. Bxe4 {[%emt 0:03:04]} Qxe4 {[%emt 0:00:01]} 17. O-O-O {[%emt 0:00:16]} a5 {[%emt 0:01:44]} 18. Rhg1 {[%emt 0:04:10]} Qf3 {[%emt 0:11:21]} 19. Nc3 {[%emt 0:03:12]} a4 {[%emt 0:00:58]} 20. Rg4 {[%emt 0:04:34]} Nb4 {[%emt 0:06:17]} 21. Rdg1 {[%emt 0:03:10]} Rf7 {[%emt 0:02:13]} 22. Ne4 {[%emt 0:02:45]} Nf4 {[%emt 0:03:48]} 23. Ng5 {[%emt 0:06:32]} Ne2+ {[%emt 0:05:47]} 24. Kd1 {[%emt 0:00:08]} 1-0

[Event "RUS-chTW Premier 2019"]
[Site "Sochi"]
[Date "2019.05.05"]
[Round "5.13"]
[White "Badelka, Olga"]
[Black "Ambartsumova, Karina"]
[Result "1-0"]
[ECO "D35"]
[WhiteElo "2383"]
[BlackElo "2364"]
[Annotator "NA"]
[PlyCount "145"]
[EventDate "2019.05.01"]
[EventType "team-tourn"]
[EventCountry "RUS"]
[SourceTitle "playchess.com"]
[Source "ChessBase"]
[SourceQuality "1"]
[TimeControl "40/5400+30:1800+30"]

1. d4 {[%emt 0:00:00]} Nf6 {[%emt 0:00:00]} 2. c4 {[%emt 0:00:00]} e6 {[%emt 0:00:10]} 3. Nc3 {[%emt 0:00:00]} d5 {[%emt 0:00:10]} 4. cxd5 {[%emt 0:00:06]} exd5 {[%emt 0:00:05]} 5. Bg5 {[%emt 0:00:06]} c6 {[%emt 0:00:42]} 6. e3 {[%emt 0:00:17]} Be7 {[%emt 0:00:25]} 7. Qc2 {[%emt 0:00:24]} Nbd7 {[%emt 0:00:47]} 8. Bd3 {[%emt 0:00:51]} h6 {[%emt 0:00:45]} 9. Bh4 {[%emt 0:01:35]} Nh5 {[%emt 0:00:47]} 10. Bxe7 {[%emt 0:00:16]} Qxe7 {[%emt 0:00:07]} 11. Nf3 {[%emt 0:02:07]} Nf4 {[%emt 0:09:57]} 12. O-O {[%emt 0:01:05]} Nxd3 {[%emt 0:00:20]} 13. Qxd3 {[%emt 0:00:04]} O-O {[%emt 0:05:31]} 14. Rac1 {[%emt 0:06:12]} Nf6 {[%emt 0:06:05]} 15. Ne5 {[%emt 0:08:35]} Re8 {[%emt 0:18:12]} 16. a3 {[%emt 0:01:18]} Nd7 {[%emt 0:04:18]} 17. Nf3 {[%emt 0:01:47]} Nf6 {[%emt 0:00:24]} 18. b4 {[%emt 0:03:41]} a5 {[%emt 0:06:59]} 19. Qb1 {[%emt 0:01:04]} Be6 {[%emt 0:04:03]} 20. Qb2 {[%emt 0:02:43]} axb4 {[%emt 0:13:14]} 21. axb4 {[%emt 0:00:05]} Rec8 {[%emt 0:01:26]} 22. Ra1 {[%emt 0:04:34]} Nd7 {[%emt 0:00:57]} 23. b5 {[%emt 0:14:06]} c5 {[%emt 0:01:21]} 24. Rxa8 {[%emt 0:01:41]} Rxa8 {[%emt 0:00:05]} 25. dxc5 {[%emt 0:00:06]} Qxc5 {[%emt 0:01:33]} 26. Nd4 {[%emt 0:01:21]} Nb6 {[%emt 0:01:48]} 27. Ra1 {[%emt 0:02:28]} Rxa1+ {[%emt 0:05:34]} 28. Qxa1 {[%emt 0:00:04]} Bd7 {[%emt 0:06:25]} 29. h3 {[%emt 0:00:35]} Bc8 {[%emt 0:05:06]} 30. Qa7 {[%emt 0:12:35]} Qc7 {[%emt 0:00:18]} 31. Qa3 {[%emt 0:02:14]} Be6 {[%emt 0:01:25]} 32. Nce2 {[%emt 0:03:35]} Nc4 {[%emt 0:03:55]} 33. Qa8+ {[%emt 0:04:41]} Qc8 {[%emt 0:00:50]} 34. Qa7 {[%emt 0:02:12]} Kh7 {[%emt 0:00:18]} 35. Nf4 {[%emt 0:01:06]} Qd7 {[%emt 0:02:17]} 36. Qb8 {[%emt 0:03:40]} Nd6 {[%emt 0:00:53]} 37. Qf8 {[%emt 0:03:37]} g6 {[%emt 0:00:45]} 38. Ndxe6 {[%emt 0:04:13]} fxe6 {[%emt 0:00:04]} 39. Qf6 {[%emt 0:00:06]} Qf7 {[%emt 0:00:32]} 40. Qxf7+ {[%emt 0:00:00]} Nxf7 {[%emt 0:00:00]} 41. Nxe6 {[%emt 0:00:12]} Nd6 {[%emt 0:04:35]} 42. Nc7 {[%emt 0:02:41]} Kg7 {[%emt 0:00:39]} 43. Kf1 {[%emt 0:13:25]} Kf6 {[%emt 0:03:21]} 44. Nxd5+ {[%emt 0:00:26]} Ke5 {[%emt 0:00:10]} 45. Nc3 {[%emt 0:00:16]} g5 {[%emt 0:01:01]} 46. g4 {[%emt 0:05:05]} Nc4 {[%emt 0:01:20]} 47. Ke2 {[%emt 0:00:17]} Nb2 {[%emt 0:00:40]} 48. Kd2 {[%emt 0:04:38]} Nc4+ {[%emt 0:00:39]} 49. Kc2 {[%emt 0:00:11]} Nd6 {[%emt 0:02:30]} 50. Kd3 {[%emt 0:00:16]} Nc8 {[%emt 0:00:19]} 51. Kc4 {[%emt 0:03:55]} b6 {[%emt 0:02:33]} 52. f3 {[%emt 0:00:34]} Nd6+ {[%emt 0:00:10]} 53. Kd3 {[%emt 0:00:22]} Ne8 {[%emt 0:01:41]} 54. Na4 {[%emt 0:01:01]} Nd6 {[%emt 0:00:44]} 55. Nxb6 {[%emt 0:00:03]} Nxb5 {[%emt 0:00:02]} 56. Nc4+ {[%emt 0:00:07]} Kd5 {[%emt 0:00:05]} 57. f4 {[%emt 0:00:24]} gxf4 {[%emt 0:00:07]} 58. exf4 {[%emt 0:00:03]} Ke6 {[%emt 0:00:16]} 59. Ke3 {[%emt 0:04:07]} Kf6 {[%emt 0:00:37]} 60. Nd2 {[%emt 0:00:28]} Nc7 {[%emt 0:01:07]} 61. h4 {[%emt 0:02:26]} Nd5+ {[%emt 0:00:33]} 62. Kf3 {[%emt 0:00:07]} Kg6 {[%emt 0:00:28]} 63. Ne4 {[%emt 0:00:26]} Kf7 {[%emt 0:00:38]} 64. f5 {[%emt 0:01:21]} Kg7 {[%emt 0:00:12]} 65. g5 {[%emt 0:00:28]} hxg5 {[%emt 0:00:20]} 66. hxg5 {[%emt 0:00:03]} Nb4 {[%emt 0:00:11]} 67. Kg4 {[%emt 0:00:41]} Nd3 {[%emt 0:00:06]} 68. Nd6 {[%emt 0:01:46]} Ne5+ {[%emt 0:00:57]} 69. Kh5 {[%emt 0:00:07]} Nd7 {[%emt 0:00:09]} 70. Ne4 {[%emt 0:00:21]} Kh7 {[%emt 0:00:11]} 71. g6+ {[%emt 0:00:32]} Kh8 {[%emt 0:00:33]} 72. Kh6 {[%emt 0:00:45]} Nf6 {[%emt 0:00:30]} 73. g7+ {[%emt 0:00:06]} 1-0

[Event "RUS-chTW Premier 2019"]
[Site "Sochi"]
[Date "2019.05.05"]
[Round "5.14"]
[White "Markelova, Lubov"]
[Black "Dordzhieva, Dinara"]
[Result "0-1"]
[ECO "A37"]
[WhiteElo "2199"]
[BlackElo "2280"]
[Annotator "NA"]
[PlyCount "116"]
[EventDate "2019.05.01"]
[EventType "team-tourn"]
[EventCountry "RUS"]
[SourceTitle "playchess.com"]
[Source "ChessBase"]
[SourceQuality "1"]
[TimeControl "40/5400+30:1800+30"]

1. Nf3 {[%emt 0:00:00]} c5 {[%emt 0:00:00]} 2. c4 {[%emt 0:00:00]} g6 {[%emt 0:00:00]} 3. Nc3 {[%emt 0:00:48]} Bg7 {[%emt 0:00:00]} 4. g3 {[%emt 0:01:12]} Nc6 {[%emt 0:00:05]} 5. Bg2 {[%emt 0:00:12]} d6 {[%emt 0:00:06]} 6. O-O {[%emt 0:00:51]} e5 {[%emt 0:00:12]} 7. a3 {[%emt 0:01:36]} a5 {[%emt 0:00:15]} 8. Ne1 {[%emt 0:02:25]} Be6 {[%emt 0:00:18]} 9. d3 {[%emt 0:01:18]} Nge7 {[%emt 0:00:06]} 10. Nc2 {[%emt 0:04:23]} d5 {[%emt 0:00:12]} 11. cxd5 {[%emt 0:00:33]} Nxd5 {[%emt 0:00:08]} 12. Ne3 {[%emt 0:00:35]} Nde7 {[%emt 0:00:45]} 13. Ne4 {[%emt 0:04:18]} b6 {[%emt 0:03:18]} 14. Ng5 {[%emt 0:09:12]} Bd7 {[%emt 0:03:21]} 15. Qb3 {[%emt 0:07:04]} O-O {[%emt 0:00:53]} 16. Nc4 {[%emt 0:01:14]} h6 {[%emt 0:04:35]} 17. Ne4 {[%emt 0:01:51]} Rb8 {[%emt 0:02:40]} 18. Qd1 {[%emt 0:10:32]} Be6 {[%emt 0:07:39]} 19. a4 {[%emt 0:06:19]} f5 {[%emt 0:02:20]} 20. Nc3 {[%emt 0:00:38]} Kh7 {[%emt 0:06:24]} 21. Bd2 {[%emt 0:05:01]} Nd4 {[%emt 0:04:00]} 22. Nb5 {[%emt 0:07:38]} Ndc6 {[%emt 0:08:07]} 23. Rc1 {[%emt 0:05:03]} Nd5 {[%emt 0:00:20]} 24. Ne3 {[%emt 0:01:24]} Ndb4 {[%emt 0:03:53]} 25. Bc3 {[%emt 0:05:23]} Qd7 {[%emt 0:05:04]} 26. Nc4 {[%emt 0:04:17]} Rfd8 {[%emt 0:02:37]} 27. b3 {[%emt 0:08:59]} Qe7 {[%emt 0:08:55]} 28. Qd2 {[%emt 0:02:51]} e4 {[%emt 0:06:05]} 29. Bxg7 {[%emt 0:02:03]} Qxg7 {[%emt 0:00:20]} 30. Qe3 {[%emt 0:00:28]} Nd5 {[%emt 0:03:07]} 31. Qd2 {[%emt 0:00:39]} exd3 {[%emt 0:00:17]} 32. Qxd3 {[%emt 0:02:08]} Nc7 {[%emt 0:06:47]} 33. Nxc7 {[%emt 0:04:57]} Qxc7 {[%emt 0:05:54]} 34. Qc3 {[%emt 0:00:10]} Nb4 {[%emt 0:07:31]} 35. Rcd1 {[%emt 0:00:45]} Qg7 {[%emt 0:00:32]} 36. Qe3 {[%emt 0:00:35]} Re8 {[%emt 0:06:14]} 37. Qf4 {[%emt 0:00:30]} Nc2 {[%emt 0:00:10]} 38. e3 {[%emt 0:00:32]} Nb4 {[%emt 0:00:10]} 39. Nd6 {[%emt 0:00:33]} Red8 {[%emt 0:02:00]} 40. Nc4 {[%emt 0:00:00]} g5 {[%emt 0:00:00]} 41. Qf3 {[%emt 0:04:30]} Qf7 {[%emt 0:08:47]} 42. e4 {[%emt 0:14:47]} f4 {[%emt 0:03:36]} 43. Nd6 {[%emt 0:04:00]} Qf8 {[%emt 0:05:11]} 44. e5 {[%emt 0:00:24]} Kg7 {[%emt 0:00:36]} 45. h4 {[%emt 0:04:19]} fxg3 {[%emt 0:05:08]} 46. Qxg3 {[%emt 0:00:36]} Qf4 {[%emt 0:00:27]} 47. Qc3 {[%emt 0:03:15]} gxh4 {[%emt 0:00:43]} 48. Rfe1 {[%emt 0:00:57]} Rf8 {[%emt 0:00:39]} 49. Ne4 {[%emt 0:01:19]} Rbd8 {[%emt 0:01:50]} 50. Nf6 {[%emt 0:00:12]} Kh8 {[%emt 0:00:41]} 51. Rxd8 {[%emt 0:01:42]} Rxd8 {[%emt 0:00:05]} 52. Nh5 {[%emt 0:00:24]} Qg5 {[%emt 0:01:27]} 53. Qf3 {[%emt 0:00:35]} Nd5 {[%emt 0:06:46]} 54. Kf1 {[%emt 0:00:30]} Bg4 {[%emt 0:00:51]} 55. Qe4 {[%emt 0:00:31]} Bxh5 {[%emt 0:00:29]} 56. e6 {[%emt 0:00:11]} Ne7 {[%emt 0:00:23]} 57. f4 {[%emt 0:00:46]} Qf6 {[%emt 0:00:40]} 58. Bh3 {[%emt 0:00:28]} Rd4 {[%emt 0:00:34]} 0-1

[Event "RUS-chTW Premier 2019"]
[Site "Sochi"]
[Date "2019.05.05"]
[Round "5.15"]
[White "Maltsevskaya, Aleksandra"]
[Black "Shafigullina, Zarina"]
[Result "1/2-1/2"]
[ECO "B34"]
[WhiteElo "2299"]
[BlackElo "2299"]
[Annotator "NA"]
[PlyCount "128"]
[EventDate "2019.05.01"]
[EventType "team-tourn"]
[EventCountry "RUS"]
[SourceTitle "playchess.com"]
[Source "ChessBase"]
[SourceQuality "1"]
[TimeControl "40/5400+30:1800+30"]

1. e4 {[%emt 0:00:00]} c5 {[%emt 0:00:00]} 2. Nf3 {[%emt 0:00:00]} Nc6 {[%emt 0:00:00]} 3. d4 {[%emt 0:00:00]} cxd4 {[%emt 0:00:00]} 4. Nxd4 {[%emt 0:00:00]} Nf6 {[%emt 0:00:00]} 5. Nc3 {[%emt 0:00:01]} e5 {[%emt 0:00:00]} 6. Ndb5 {[%emt 0:00:06]} d6 {[%emt 0:00:00]} 7. Nd5 {[%emt 0:00:05]} Nxd5 {[%emt 0:00:01]} 8. exd5 {[%emt 0:00:05]} Nb8 {[%emt 0:00:02]} 9. a4 {[%emt 0:00:08]} Bf5 {[%emt 0:07:30]} 10. Be2 {[%emt 0:08:53]} Be7 {[%emt 0:00:58]} 11. O-O {[%emt 0:03:16]} O-O {[%emt 0:06:56]} 12. Be3 {[%emt 0:07:13]} a6 {[%emt 0:00:48]} 13. Na3 {[%emt 0:00:07]} Nd7 {[%emt 0:00:39]} 14. Nc4 {[%emt 0:01:16]} b5 {[%emt 0:01:45]} 15. Na3 {[%emt 0:06:44]} b4 {[%emt 0:05:23]} 16. Nc4 {[%emt 0:00:07]} a5 {[%emt 0:00:14]} 17. Kh1 {[%emt 0:05:17]} Qc8 {[%emt 0:03:32]} 18. Rc1 {[%emt 0:09:54]} Qb7 {[%emt 0:01:12]} 19. f4 {[%emt 0:00:34]} Be4 {[%emt 0:06:28]} 20. Bf3 {[%emt 0:02:27]} Bxf3 {[%emt 0:00:08]} 21. Qxf3 {[%emt 0:00:06]} f5 {[%emt 0:10:42]} 22. Rcd1 {[%emt 0:08:56]} e4 {[%emt 0:04:25]} 23. Qh3 {[%emt 0:01:16]} b3 {[%emt 0:05:03]} 24. c3 {[%emt 0:02:06]} Qc8 {[%emt 0:03:26]} 25. Nd2 {[%emt 0:04:35]} Rb8 {[%emt 0:00:38]} 26. g4 {[%emt 0:05:36]} Nf6 {[%emt 0:07:43]} 27. gxf5 {[%emt 0:00:36]} Nxd5 {[%emt 0:00:11]} 28. Nxe4 {[%emt 0:01:21]} Qb7 {[%emt 0:28:18]} 29. Kg1 {[%emt 0:01:49]} Nxe3 {[%emt 0:06:57]} 30. Qxe3 {[%emt 0:00:05]} Rxf5 {[%emt 0:00:48]} 31. Qd3 {[%emt 0:12:07]} Qb6+ {[%emt 0:00:24]} 32. Qd4 {[%emt 0:01:19]} Qxd4+ {[%emt 0:00:58]} 33. Rxd4 {[%emt 0:00:05]} Rbf8 {[%emt 0:00:27]} 34. Ng3 {[%emt 0:02:06]} Rc5 {[%emt 0:00:19]} 35. Re1 {[%emt 0:00:58]} Kf7 {[%emt 0:00:39]} 36. Kg2 {[%emt 0:01:19]} Rd8 {[%emt 0:00:09]} 37. Red1 {[%emt 0:02:08]} Ke6 {[%emt 0:01:02]} 38. Ne4 {[%emt 0:09:05]} Rf5 {[%emt 0:00:01]} 39. Nd2 {[%emt 0:00:11]} Bf6 {[%emt 0:00:39]} 40. Nxb3 {[%emt 0:00:00]} d5 {[%emt 0:00:00]} 41. c4 {[%emt 0:12:44]} Rb8 {[%emt 0:07:19]} 42. cxd5+ {[%emt 0:07:23]} Kd6 {[%emt 0:01:19]} 43. R4d3 {[%emt 0:00:08]} Rxf4 {[%emt 0:00:10]} 44. Re1 {[%emt 0:00:55]} Be5 {[%emt 0:01:39]} 45. Rc1 {[%emt 0:02:19]} Rb6 {[%emt 0:04:27]} 46. Rc8 {[%emt 0:05:08]} Kd7 {[%emt 0:16:26]} 47. Ra8 {[%emt 0:01:05]} Rfb4 {[%emt 0:00:51]} 48. Nxa5 {[%emt 0:01:21]} Rxb2+ {[%emt 0:00:04]} 49. Kf3 {[%emt 0:00:05]} Rf6+ {[%emt 0:01:44]} 50. Ke4 {[%emt 0:02:12]} Bxh2 {[%emt 0:00:11]} 51. Ra7+ {[%emt 0:01:39]} Bc7 {[%emt 0:00:50]} 52. Rc3 {[%emt 0:01:35]} Re2+ {[%emt 0:00:08]} 53. Kd4 {[%emt 0:00:09]} Rf4+ {[%emt 0:00:33]} 54. Kc5 {[%emt 0:00:04]} Rxa4 {[%emt 0:00:57]} 55. Rxc7+ {[%emt 0:01:52]} Kxc7 {[%emt 0:00:01]} 56. Kb5+ {[%emt 0:00:06]} Kd6 {[%emt 0:00:04]} 57. Kxa4 {[%emt 0:00:07]} Kxd5 {[%emt 0:00:19]} 58. Kb4 {[%emt 0:02:00]} Rb2+ {[%emt 0:01:36]} 59. Nb3 {[%emt 0:00:09]} h6 {[%emt 0:00:25]} 60. Rg3 {[%emt 0:00:33]} g5 {[%emt 0:00:21]} 61. Rh3 {[%emt 0:00:04]} Ke4 {[%emt 0:00:32]} 62. Rxh6 {[%emt 0:00:28]} g4 {[%emt 0:00:20]} 63. Kc3 {[%emt 0:00:09]} Ra2 {[%emt 0:00:54]} 64. Nd2+ {[%emt 0:00:33]} Ke5 1/2-1/2

[Event "RUS-chTW Premier 2019"]
[Site "Sochi"]
[Date "2019.05.05"]
[Round "5.16"]
[White "Bulatova, Kamaliya"]
[Black "Diakonova, Ekaterina"]
[Result "1/2-1/2"]
[ECO "D35"]
[WhiteElo "2103"]
[BlackElo "2211"]
[Annotator "NA"]
[PlyCount "94"]
[EventDate "2019.05.01"]
[EventType "team-tourn"]
[EventCountry "RUS"]
[SourceTitle "playchess.com"]
[Source "ChessBase"]
[SourceQuality "1"]
[TimeControl "40/5400+30:1800+30"]

1. d4 {[%emt 0:00:00]} Nf6 {[%emt 0:00:00]} 2. c4 {[%emt 0:00:00]} e6 {[%emt 0:00:00]} 3. Nc3 {[%emt 0:00:00]} d5 {[%emt 0:00:00]} 4. cxd5 {[%emt 0:00:00]} exd5 $11 {[%emt 0:00:00]} 5. Bg5 {[%emt 0:00:02]} c6 {[%emt 0:00:00]} 6. e3 {[%emt 0:00:32]} Bf5 {[%emt 0:00:23]} 7. Qf3 {[%emt 0:01:06]} Bg6 {[%emt 0:00:05]} 8. Bxf6 {[%emt 0:00:04]} Qxf6 {[%emt 0:00:04]} 9. Qxf6 {[%emt 0:00:05]} gxf6 {[%emt 0:00:04]} 10. Nh3 {[%emt 0:08:39]} Nd7 {[%emt 0:02:47]} 11. Nf4 {[%emt 0:02:34]} Bd6 {[%emt 0:04:07]} 12. Nd3 {[%emt 0:07:31]} a5 {[%emt 0:06:34]} 13. Be2 {[%emt 0:02:56]} a4 {[%emt 0:10:41]} 14. O-O {[%emt 0:08:09]} b5 {[%emt 0:12:34]} 15. a3 {[%emt 0:04:33]} Nb6 {[%emt 0:00:51]} 16. Na2 {[%emt 0:13:38]} Nc4 {[%emt 0:01:44]} 17. Ndb4 {[%emt 0:06:45]} Kd7 {[%emt 0:03:53]} 18. Rac1 {[%emt 0:04:16]} Rac8 {[%emt 0:04:33]} 19. Bxc4 {[%emt 0:01:14]} bxc4 {[%emt 0:00:05]} 20. Nc3 {[%emt 0:02:39]} Ra8 {[%emt 0:04:03]} 21. Nca2 {[%emt 0:04:27]} Rhg8 {[%emt 0:07:43]} 22. f3 {[%emt 0:04:24]} Rab8 {[%emt 0:00:06]} 23. Rf2 {[%emt 0:03:07]} h5 {[%emt 0:05:34]} 24. e4 {[%emt 0:08:19]} dxe4 {[%emt 0:09:30]} 25. fxe4 {[%emt 0:03:18]} Bxe4 {[%emt 0:00:10]} 26. Rxc4 {[%emt 0:00:51]} Rbe8 {[%emt 0:08:10]} 27. Nc3 {[%emt 0:05:09]} Bd5 {[%emt 0:00:40]} 28. Ncxd5 {[%emt 0:00:33]} cxd5 {[%emt 0:00:24]} 29. Rc1 {[%emt 0:00:34]} Bxb4 {[%emt 0:01:03]} 30. axb4 {[%emt 0:00:04]} Rb8 {[%emt 0:08:24]} 31. Rc5 {[%emt 0:01:34]} Rxb4 {[%emt 0:00:43]} 32. Rxd5+ {[%emt 0:00:19]} Ke6 {[%emt 0:03:36]} 33. Rdf5 {[%emt 0:00:54]} Rg6 {[%emt 0:01:05]} 34. d5+ {[%emt 0:00:15]} Ke7 {[%emt 0:00:28]} 35. Rxh5 {[%emt 0:00:06]} Rd4 {[%emt 0:00:41]} 36. h3 {[%emt 0:01:01]} Rg5 {[%emt 0:00:53]} 37. Rh6 {[%emt 0:00:14]} Rg6 {[%emt 0:00:34]} 38. Re2+ {[%emt 0:02:23]} Kf8 {[%emt 0:02:15]} 39. Rh8+ {[%emt 0:00:52]} Kg7 {[%emt 0:00:01]} 40. Ra8 {[%emt 0:00:00]} f5 {[%emt 0:00:00]} 41. Ra7 {[%emt 0:02:54]} Rb6 {[%emt 0:08:20]} 42. Ree7 {[%emt 0:11:46]} Rxb2 {[%emt 0:01:56]} 43. Rxf7+ {[%emt 0:00:22]} Kg6 {[%emt 0:00:23]} 44. Rfd7 {[%emt 0:01:20]} Kf6 {[%emt 0:08:55]} 45. Rf7+ {[%emt 0:07:07]} Kg6 {[%emt 0:02:05]} 46. Rfc7 {[%emt 0:06:14]} Kf6 {[%emt 0:04:04]} 47. Rf7+ {[%emt 0:06:39]} Kg6 {[%emt 0:00:05]} 1/2-1/2